bitfinex/quotes_SOLUSD_20251025
["timestamp","ask_amount","ask_price","bid_price","bid_amount"]
[1761403676577,10.87647521,192.65,192.62,37.93204589]
[1761403676781,10.87647521,192.65,192.62,38.64204589]
[1761403677290,11.52647521,192.65,192.62,38.64204589]
[1761403677489,11.52647521,192.65,192.62,37.93204589]
[1761403678790,10.87647521,192.65,192.62,38.64204589]
[1761403680792,5.18995225,192.68,192.63,2.66204589]
[1761403681003,10.87647521,192.67,192.64,2.66204589]
[1761403681202,10.87647521,192.67,192.65,35.98]
[1761403681411,10.87647521,192.67,192.65,36.69]
[1761403681906,16.06689585,192.67,192.65,35.98]
[1761403682303,11.53647521,192.66,192.65,35.98]
[1761403682604,13.4885211,192.66,192.65,35.98]
[1761403682798,13.4885211,192.66,192.61,0.1]
[1761403683004,11.53647521,192.65,192.62,35.98]
[1761403683380,10.87647521,192.63,192.62,35.98]
[1761403683787,5.85129938,192.63,192.62,35.98]
[1761403686700,5.19129938,192.63,192.62,35.98]
[1761403687090,10.87647521,192.66,192.62,38.64204589]
[1761403687294,10.87647521,192.66,192.64,1.95204589]
[1761403687492,10.87647521,192.66,192.65,35.98]
[1761403687920,10.87647521,192.68,192.65,38.64204589]
[1761403688118,11.53647521,192.68,192.65,37.93204589]
[1761403688620,10.87647521,192.68,192.65,38.64204589]
[1761403688911,10.87647521,192.68,192.65,36.69]
[1761403689121,16.06646006,192.68,192.65,38.64204589]
[1761403689617,16.06646006,192.68,192.65,37.93204589]
[1761403689817,16.06646006,192.68,192.65,36.69]
[1761403690118,16.72646006,192.68,192.65,38.64204589]
[1761403691116,16.06646006,192.68,192.65,38.64204589]
[1761403691717,16.06646006,192.68,192.65,36.69]
[1761403691896,16.06646006,192.68,192.65,38.64204589]
[1761403692396,10.87647521,192.68,192.66,1.95204589]
[1761403692591,10.87647521,192.68,192.67,2.66204589]
[1761403692823,10.87647521,192.7,192.67,2.66204589]
[1761403693017,10.87647521,192.7,192.68,35.98]
[1761403693221,16.06615812,192.69,192.68,35.98]
[1761403693920,16.72615812,192.69,192.68,35.98]
[1761403695724,10.87647521,192.68,192.66,35.98]
[1761403695906,11.53647521,192.68,192.66,35.98]
[1761403697519,16.06669683,192.67,192.66,35.98]
[1761403697824,16.72669683,192.67,192.66,35.98]
[1761403699323,10.87647521,192.67,192.66,35.98]
[1761403699527,10.87647521,192.67,192.66,38.64204589]
[1761403700024,16.06634672,192.69,192.66,38.64204589]
[1761403700208,1.95204589,192.72,192.67,2.66204589]
[1761403700209,10.87647521,192.72,192.67,2.66204589]
[1761403700617,11.56647521,192.72,192.68,0.71]
[1761403700806,11.56647521,192.72,192.69,35.98]
[1761403701421,16.0658888,192.7,192.69,35.98]
[1761403705725,16.7558888,192.7,192.69,35.98]
[1761403706932,16.7558888,192.7,192.66,0.71]
[1761403707225,10.87647521,192.68,192.67,35.96]
[1761403707539,16.06642746,192.68,192.67,35.96]
[1761403709225,16.75642746,192.68,192.67,35.96]
[1761403711621,16.06642746,192.68,192.67,35.96]
[1761403711834,16.06642746,192.68,192.67,36.67]
[1761403712329,0.69,192.71,192.67,36.67]
[1761403712535,10.87647521,192.72,192.68,0.71]
[1761403712835,11.56647521,192.72,192.68,0.71]
[1761403713642,10.87647521,192.72,192.7,1.24896545]
[1761403713938,10.87647521,192.72,192.68,0.71]
[1761403713939,10.87647521,192.72,192.71,35.96]
[1761403714432,16.06535026,192.72,192.71,35.96]
[1761403718543,16.75535026,192.72,192.71,35.96]
[1761403720134,16.06535026,192.72,192.71,35.96]
[1761403722521,16.75535026,192.72,192.71,35.96]
[1761403724129,5.18864861,192.73,192.71,36.67]
[1761403725721,5.18864861,192.73,192.71,35.96]
[1761403726833,5.18864861,192.73,192.71,36.67]
[1761403728646,5.18864861,192.73,192.71,35.96]
[1761403728840,16.06512382,192.73,192.72,0.71]
[1761403729343,16.06481182,192.74,192.72,0.71]
[1761403730144,16.06481182,192.74,192.71,35.96]
[1761403730346,16.06481182,192.74,192.71,36.62]
[1761403730745,10.87647521,192.73,192.71,35.96]
[1761403730930,11.57647521,192.73,192.71,35.96]
[1761403732167,5.18887505,192.72,192.71,35.96]
[1761403734678,16.06535026,192.72,192.71,35.96]
[1761403734824,16.06535026,192.72,192.64,22.88]
[1761403734825,10.87647521,192.71,192.64,22.88]
[1761403735141,10.87647521,192.69,192.65,36.62]
[1761403735534,11.57647521,192.69,192.65,36.62]
[1761403735723,11.57647521,192.69,192.65,35.96]
[1761403735936,11.57647521,192.69,192.66,0.66]
[1761403736746,10.87647521,192.69,192.66,0.66]
[1761403737142,10.87647521,192.72,192.68,1.24896545]
[1761403737460,0.7,192.71,192.69,35.96]
[1761403738361,5.88934955,192.71,192.69,35.96]
[1761403738661,5.18934955,192.71,192.69,35.96]
[1761403740861,5.88892235,192.72,192.69,36.63]
[1761403741165,5.18892235,192.72,192.69,36.63]
[1761403741461,5.18892235,192.72,192.69,37.20896545]
[1761403741762,5.18892235,192.72,192.7,0.67]
[1761403742263,107.38842761,192.74,192.7,1.91896545]
[1761403742640,107.38842761,192.74,192.71,0.67]
[1761403742841,108.06842761,192.74,192.72,35.96]
[1761403743061,5.86842761,192.74,192.72,35.96]
[1761403743254,11.55647521,192.73,192.72,35.96]
[1761403743660,10.87647521,192.73,192.72,35.96]
[1761403744870,10.87647521,192.73,192.72,36.63]
[1761403745267,5.18842761,192.74,192.72,36.63]
[1761403746175,5.18842761,192.74,192.72,35.96]
[1761403746371,29.03471126,192.75,192.72,35.96]
[1761403746569,29.71471126,192.75,192.72,35.96]
[1761403749551,29.71471126,192.75,192.72,36.63]
[1761403749749,29.71471126,192.75,192.72,35.96]
[1761403749964,29.03471126,192.75,192.72,36.63]
[1761403750160,5.18806744,192.75,192.73,0.67]
[1761403750568,5.18806744,192.75,192.72,36.63]
[1761403751278,5.86806744,192.75,192.72,36.63]
[1761403752375,5.86806744,192.75,192.72,35.96]
[1761403752675,5.86806744,192.75,192.72,36.63]
[1761403753554,5.18860582,192.73,192.72,35.96]
[1761403756683,10.87647521,192.73,192.72,35.96]
[1761403756863,10.87647521,192.74,192.72,36.63]
[1761403757187,11.55647521,192.74,192.72,35.96]
[1761403757977,16.06508103,192.73,192.72,35.96]
[1761403758278,5.18860582,192.73,192.72,36.63]
[1761403758466,5.86860582,192.73,192.72,35.96]
[1761403759188,5.18860582,192.73,192.72,35.96]
[1761403759664,5.18860582,192.73,192.72,36.63]
[1761403760167,16.06484332,192.74,192.72,36.63]
[1761403760482,5.18836811,192.74,192.73,0.69]
[1761403761260,5.18836811,192.74,192.72,35.96]
[1761403761470,5.18836811,192.74,192.72,36.65]
[1761403762062,5.18806744,192.75,192.72,36.65]
[1761403762259,10.87647521,192.74,192.72,35.96]
[1761403762459,11.55647521,192.74,192.72,35.96]
[1761403762967,10.87647521,192.74,192.72,36.65]
[1761403763158,5.18860582,192.73,192.72,35.96]
[1761403767368,5.86860582,192.73,192.72,35.96]
[1761403768276,16.06508103,192.73,192.72,35.96]
[1761403772072,16.74508103,192.73,192.72,35.96]
[1761403772274,16.06508103,192.73,192.72,35.96]
[1761403772982,16.74508103,192.73,192.72,35.96]
[1761403773180,10.87647521,192.72,192.66,2.64027042]
[1761403773381,0.68,192.71,192.67,35.92]
[1761403773995,10.87647521,192.7,192.67,35.92]
[1761403774515,0.68,192.69,192.67,35.92]
[1761403775108,5.18995225,192.68,192.67,35.92]
[1761403779819,11.55647521,192.68,192.67,35.92]
[1761403781397,16.74642746,192.68,192.67,35.92]
[1761403782307,29.72130809,192.68,192.62,11.56647521]
[1761403782629,10.87647521,192.66,192.63,35.92]
[1761403783003,0.68,192.66,192.63,35.92]
[1761403783404,5.87067791,192.66,192.63,36.61]
[1761403788425,5.19067791,192.66,192.64,0.69]
[1761403790113,5.19067791,192.66,192.63,36.61]
[1761403790308,5.19067791,192.66,192.63,35.92]
[1761403790500,5.19067791,192.66,192.64,0.69]
[1761403790706,5.19067791,192.66,192.63,36.61]
[1761403792331,5.85067791,192.66,192.63,36.61]
[1761403795818,5.19067791,192.66,192.64,0.69]
[1761403796002,5.19067791,192.66,192.63,35.92]
[1761403796208,5.85067791,192.66,192.63,36.61]
[1761403804137,5.19067791,192.66,192.64,0.71]
[1761403804311,5.84067791,192.66,192.63,36.63]
[1761403806543,16.06670183,192.67,192.64,0.71]
[1761403807446,5.19022662,192.67,192.64,2.66027042]
[1761403807827,16.06615812,192.69,192.65,0.71]
[1761403808041,16.06615812,192.69,192.66,35.92]
[1761403808340,16.71615812,192.69,192.66,35.92]
[1761403808518,16.71615812,192.69,192.66,36.63]
[1761403809845,29.69036539,192.69,192.66,36.63]
[1761403810040,30.99063581,192.69,192.66,35.92]
[1761403810238,0.65,192.68,192.66,35.92]
[1761403810828,5.19022162,192.67,192.66,35.92]
[1761403811137,16.06669683,192.67,192.66,35.92]
[1761403811324,16.71669683,192.67,192.66,35.92]
[1761403812945,5.18996909,192.68,192.66,35.92]
[1761403813149,5.18914431,192.71,192.67,0.71]
[1761403813330,5.18914431,192.71,192.67,16.28915509]
[1761403813528,5.18914431,192.71,192.68,0.71]
[1761403813728,5.18914431,192.71,192.69,35.92]
[1761403814228,5.18914431,192.71,192.69,36.63]
[1761403816749,10.87647521,192.71,192.69,36.63]
[1761403816930,11.52647521,192.71,192.69,35.92]
[1761403818256,5.18941359,192.7,192.69,35.92]
[1761403819055,5.18941359,192.7,192.69,36.63]
[1761403819255,5.18941359,192.7,192.69,35.92]
[1761403830774,5.18941359,192.7,192.66,15.57996416]
[1761403830775,29.75942279,192.7,192.66,15.57996416]
[1761403831066,29.75942279,192.7,192.66,35.92]
[1761403831067,13.54674563,192.69,192.66,35.92]
[1761403831259,11.59647521,192.69,192.66,35.92]
[1761403831456,10.87647521,192.67,192.66,35.92]
[1761403832455,16.06669683,192.67,192.66,35.92]
[1761403835074,10.87647521,192.67,192.66,36.59]
[1761403836171,13.69353399,192.7,192.66,37.83884499]
[1761403836172,10.87647521,192.69,192.66,37.83884499]
[1761403836364,10.87647521,192.69,192.67,0.67]
[1761403837965,5.1897998,192.69,192.67,0.67]
[1761403839778,10.87647521,192.69,192.67,0.67]
[1761403841856,5.18981413,192.69,192.67,0.67]
[1761403842975,16.06628934,192.69,192.67,0.67]
[1761403845082,16.78628934,192.69,192.66,35.92]
[1761403845287,16.78628934,192.69,192.66,36.59]
[1761403846462,16.06628934,192.69,192.67,0.67]
[1761403846865,16.06628934,192.69,192.66,35.92]
[1761403847162,16.78628934,192.69,192.66,36.59]
[1761403848269,16.06652948,192.68,192.66,36.59]
[1761403848467,16.78652948,192.68,192.66,35.92]
[1761403848671,10.87647521,192.66,192.64,35.92]
[1761403849071,11.59647521,192.65,192.64,35.92]
[1761403849388,10.87647521,192.64,192.61,36.02]
[1761403849572,11.59647521,192.64,192.61,36.02]
[1761403849761,10.87647521,192.62,192.61,36.02]
[1761403850469,16.0680441,192.62,192.61,36.02]
[1761403854571,16.7680441,192.62,192.61,36.02]
[1761403854998,16.0680441,192.62,192.61,36.02]
[1761403855785,16.7680441,192.62,192.61,36.02]
[1761403857306,10.87647521,192.63,192.61,36.02]
[1761403857479,11.57647521,192.63,192.61,36.02]
[1761403858603,5.19156889,192.62,192.61,36.02]
[1761403859684,0.65,192.63,192.61,36.02]
[1761403860788,5.19156889,192.62,192.61,36.02]
[1761403861281,5.84130214,192.63,192.61,36.02]
[1761403868601,11.52647521,192.62,192.61,36.02]
[1761403868914,10.87647521,192.62,192.61,36.02]
[1761403873707,16.0680441,192.62,192.61,36.02]
[1761403874706,16.7180441,192.62,192.61,36.02]
[1761403875189,16.0680441,192.62,192.61,36.02]
[1761403875407,10.87647521,192.62,192.61,36.7]
[1761403875902,10.87647521,192.62,192.61,36.02]
[1761403877510,16.7180441,192.62,192.61,36.02]
[1761403878908,10.87647521,192.62,192.61,36.02]
[1761403879212,10.87647521,192.62,192.61,36.7]
[1761403879599,0.65,192.67,192.61,36.7]
[1761403879807,10.87647521,192.66,192.62,0.68]
[1761403880316,0.69,192.66,192.62,0.68]
[1761403880906,10.87647521,192.64,192.62,0.68]
[1761403881492,11.56647521,192.64,192.61,36.02]
[1761403881722,11.56647521,192.64,192.61,36.72]
[1761403882708,10.87647521,192.64,192.61,36.02]
[1761403882910,10.87647521,192.64,192.62,0.7]
[1761403883314,16.06766412,192.64,192.61,36.02]
[1761403883498,16.06766412,192.64,192.62,0.7]
[1761403885096,16.75766412,192.64,192.61,36.02]
[1761403885295,16.06766412,192.64,192.62,0.7]
[1761403886014,16.06766412,192.64,192.61,36.02]
[1761403886194,16.75766412,192.64,192.61,36.72]
[1761403886398,16.06766412,192.64,192.61,36.72]
[1761403886818,16.06766412,192.64,192.62,0.7]
[1761403887024,16.06766412,192.64,192.61,36.02]
[1761403887199,16.75766412,192.64,192.61,36.72]
[1761403888824,10.87647521,192.62,192.61,36.02]
[1761403889417,16.0680441,192.62,192.61,36.02]
[1761403891423,16.0680441,192.62,192.61,36.72]
[1761403895529,16.0680441,192.62,192.61,36.02]
[1761403895729,16.0680441,192.62,192.61,36.72]
[1761403897334,16.0680441,192.62,192.61,36.02]
[1761403898517,16.0680441,192.62,192.61,36.72]
[1761403898939,16.06781738,192.63,192.61,36.72]
[1761403900412,10.87647521,192.63,192.61,36.72]
[1761403900616,5.19105628,192.64,192.62,0.7]
[1761403903138,0.69,192.64,192.61,36.02]
[1761403903435,0.69,192.64,192.61,36.72]
[1761403903922,10.87647521,192.64,192.61,36.02]
[1761403904114,10.87647521,192.64,192.62,0.7]
[1761403905040,5.19115181,192.64,192.61,36.02]
[1761403905346,5.19115181,192.64,192.62,0.7]
[1761403907622,16.06723565,192.65,192.62,0.7]
[1761403907821,16.75723565,192.65,192.62,0.7]
[1761403908449,12.97330908,192.71,192.63,1.95218354]
[1761403908620,10.87647521,192.68,192.65,1.95218354]
[1761403908928,10.87647521,192.68,192.66,1.95218354]
[1761403909111,10.87647521,192.68,192.67,36.62]
[1761403909736,5.18995225,192.68,192.67,35.92]
[1761403913151,5.89995225,192.68,192.67,35.92]
[1761403915445,7.85213579,192.68,192.67,35.92]
[1761403915630,5.89995225,192.68,192.67,35.92]
[1761403915835,10.87647521,192.67,192.65,35.92]
[1761403916037,11.58647521,192.67,192.65,35.92]
[1761403916342,11.58647521,192.66,192.65,35.92]
[1761403917050,16.77696623,192.66,192.65,35.92]
[1761403918142,16.06696623,192.66,192.65,35.92]
[1761403918465,16.77696623,192.66,192.65,35.92]
[1761403923033,16.06696623,192.66,192.65,35.92]
[1761403923351,16.77696623,192.66,192.65,35.92]
[1761403926054,18.72914977,192.66,192.65,35.92]
[1761403926240,10.87647521,192.65,192.63,35.9]
[1761403926441,16.77728969,192.65,192.63,35.9]
[1761403926749,11.58647521,192.64,192.63,35.9]
[1761403926932,10.87647521,192.64,192.63,35.9]
[1761403927327,11.58647521,192.64,192.63,35.9]
[1761403927929,10.87647521,192.64,192.63,35.9]
[1761403929551,11.58647521,192.64,192.63,35.9]
[1761403930954,10.87647521,192.64,192.63,35.9]
[1761403931835,11.58647521,192.64,192.63,35.9]
[1761403933059,10.87647521,192.64,192.63,35.9]
[1761403933959,10.87647521,192.64,192.63,36.6]
[1761403934637,5.90027056,192.67,192.63,36.6]
[1761403934839,11.58647521,192.66,192.63,36.6]
[1761403935244,11.58647521,192.66,192.63,35.9]
[1761403937375,11.58647521,192.66,192.63,36.6]
[1761403938538,14.92642339,192.69,192.63,36.6]
[1761403938539,102.91,192.7,192.64,0.7]
[1761403938762,10.87647521,192.69,192.65,35.9]
[1761403938966,11.58647521,192.69,192.65,35.9]
[1761403939139,10.87647521,192.67,192.65,35.9]
[1761403939461,10.87647521,192.67,192.65,36.6]
[1761403942464,16.06672402,192.67,192.65,36.6]
[1761403950158,16.75672402,192.67,192.65,35.9]
[1761403952753,16.06672402,192.67,192.65,35.9]
[1761403952957,16.06672402,192.67,192.65,36.56]
[1761403957178,16.06672402,192.67,192.65,35.9]
[1761403957480,16.06672402,192.67,192.65,36.56]
[1761403960977,16.75672402,192.67,192.65,35.9]
[1761403961884,16.06672402,192.67,192.65,35.9]
[1761403962588,16.06672402,192.67,192.65,36.56]
[1761403964900,16.06672402,192.67,192.65,35.9]
[1761403966492,16.06672402,192.67,192.65,36.56]
[1761403971700,16.06672402,192.67,192.65,35.9]
[1761403971905,16.77672402,192.67,192.65,35.9]
[1761403972113,16.06672402,192.67,192.65,35.9]
[1761403973183,16.77672402,192.67,192.65,35.9]
[1761403973499,16.06672402,192.67,192.65,35.9]
[1761403973683,16.77672402,192.67,192.65,35.9]
[1761403977314,16.06672402,192.67,192.65,35.9]
[1761403977610,16.06672402,192.67,192.65,36.6]
[1761403978109,0.71,192.68,192.66,0.7]
[1761403978110,16.06643855,192.68,192.66,0.7]
[1761403983213,0.67,192.67,192.65,35.9]
[1761403983810,10.87647521,192.66,192.65,35.9]
[1761403983995,10.87647521,192.66,192.61,0.1]
[1761403983996,12.12536754,192.66,192.61,0.1]
[1761403984201,10.87647521,192.62,192.61,0.1]
[1761403984403,10.87647521,192.62,192.61,36.0]
[1761403984604,11.54647521,192.62,192.61,36.0]
[1761403985120,16.7380441,192.62,192.61,36.0]
[1761403987018,16.0680441,192.62,192.61,36.0]
[1761403987918,16.7380441,192.62,192.61,36.0]
[1761404003936,11.54647521,192.62,192.61,36.0]
[1761404004231,10.87647521,192.62,192.61,36.0]
[1761404006809,16.7480441,192.62,192.61,36.0]
[1761404009966,16.0680441,192.62,192.61,36.0]
[1761404011119,10.87647521,192.62,192.61,36.0]
[1761404014238,11.55647521,192.62,192.61,36.0]
[1761404015452,16.7480441,192.62,192.61,36.0]
[1761404023061,11.55647521,192.62,192.61,36.0]
[1761404023244,10.87647521,192.62,192.61,36.0]
[1761404024643,16.7480441,192.62,192.61,36.0]
[1761404025246,18.70047565,192.62,192.61,0.1]
[1761404026461,18.70047565,192.62,192.59,0.1]
[1761404026462,33.75647521,192.6,192.59,0.1]
[1761404026660,35.70890676,192.6,192.59,0.1]
[1761404026845,36.38890676,192.6,192.59,0.1]
[1761404027557,38.46785481,192.6,192.59,0.1]
[1761404028546,43.6599628,192.6,192.59,0.1]
[1761404028749,43.6599628,192.6,192.59,1e-08]
[1761404029756,43.6599628,192.6,192.57,0.1]
[1761404029757,10.87647521,192.59,192.57,0.1]
[1761404029958,12.82890676,192.58,192.57,0.1]
[1761404030161,13.50890676,192.58,192.57,0.1]
[1761404030565,15.58807093,192.58,192.57,0.1]
[1761404030756,20.78071814,192.58,192.57,0.1]
[1761404035674,18.82828659,192.58,192.57,0.1]
[1761404035879,20.78071814,192.58,192.57,0.1]
[1761404040582,20.10071814,192.58,192.57,0.1]
[1761404041080,20.80071814,192.58,192.57,0.1]
[1761404041691,18.84828659,192.58,192.57,0.1]
[1761404041986,20.80071814,192.58,192.57,0.1]
[1761404049082,20.10071814,192.58,192.57,0.1]
[1761404049781,18.02155397,192.58,192.57,0.1]
[1761404052592,18.72155397,192.58,192.57,0.1]
[1761404054889,20.80061007,192.58,192.57,0.1]
[1761404059691,18.72155397,192.58,192.57,0.1]
[1761404064900,20.80050202,192.58,192.57,0.1]
[1761404069203,18.72155397,192.58,192.57,0.1]
[1761404070198,16.06912242,192.58,192.57,0.8]
[1761404073606,10.87647521,192.62,192.57,2.75243155]
[1761404073898,10.87647521,192.62,192.57,4.8307315]
[1761404074106,10.87647521,192.62,192.58,0.7]
[1761404074479,16.0680441,192.62,192.58,0.7]
[1761404076209,18.02047565,192.62,192.58,0.7]
[1761404076806,17.31786829,192.62,192.58,0.7]
[1761404078300,16.0680441,192.62,192.58,0.7]
[1761404089727,5.19127172,192.64,192.59,1.24982419]
[1761404089925,5.19127172,192.64,192.6,1.24982419]
[1761404090424,5.19127172,192.64,192.62,1.24982419]
[1761404090802,5.19127172,192.64,192.63,0.72]
[1761404091000,23.85331375,192.66,192.63,0.72]
[1761404091001,16.06723565,192.65,192.63,0.72]
[1761404092118,16.77723565,192.65,192.59,57.90528181]
[1761404092323,16.77723565,192.65,192.61,0.72]
[1761404093326,18.02705984,192.65,192.61,0.72]
[1761404095827,17.31705984,192.65,192.61,0.72]
[1761404096324,16.06723565,192.65,192.61,0.72]
[1761404098628,30.29396095,192.65,192.59,52.71302549]
[1761404098922,10.87647521,192.63,192.6,0.72]
[1761404100236,16.06799646,192.63,192.6,0.72]
[1761404100726,10.87647521,192.63,192.6,0.72]
[1761404101229,10.87647521,192.63,192.6,1.96982419]
[1761404101525,10.87647521,192.64,192.61,1.24982419]
[1761404101725,10.87647521,192.64,192.61,1.89982419]
[1761404101930,10.87647521,192.64,192.62,0.65]
[1761404102425,5.19107398,192.64,192.62,0.65]
[1761404103728,16.06742222,192.65,192.62,0.65]
[1761404105509,14.92533836,192.68,192.62,0.65]
[1761404105712,10.87647521,192.67,192.62,1.89982419]
[1761404105913,10.87647521,192.67,192.63,1.24982419]
[1761404106217,10.87647521,192.67,192.64,35.86]
[1761404106417,16.06673426,192.67,192.64,36.51]
[1761404106617,16.06673426,192.67,192.65,0.65]
[1761404108232,16.06673426,192.67,192.64,36.51]
[1761404110754,16.06673426,192.67,192.64,35.86]
[1761404110947,5.89071857,192.66,192.64,35.86]
[1761404111543,5.19071857,192.66,192.64,36.51]
[1761404112734,10.87647521,192.67,192.65,0.65]
[1761404114464,16.06673906,192.67,192.65,0.65]
[1761404119165,16.06647527,192.68,192.65,0.65]
[1761404119650,16.06647527,192.68,192.65,1.89982419]
[1761404119651,10.87647521,192.68,192.65,1.89982419]
[1761404119860,10.87647521,192.68,192.66,0.65]
[1761404121559,10.87647521,192.68,192.67,35.86]
[1761404122353,5.1897051,192.69,192.67,35.86]
[1761404122551,5.1897051,192.69,192.67,36.57]
[1761404126765,5.8897051,192.69,192.67,35.86]
[1761404127771,10.87647521,192.69,192.67,36.57]
[1761404130854,10.87647521,192.72,192.68,1.95982419]
[1761404131372,10.87647521,192.72,192.69,0.71]
[1761404131671,5.18870946,192.73,192.7,35.86]
[1761404132050,5.18870946,192.73,192.7,36.57]
[1761404134249,0.7,192.73,192.7,36.57]
[1761404135671,5.88875477,192.73,192.7,35.86]
[1761404135873,5.88875477,192.73,192.7,36.57]
[1761404136173,5.88875477,192.73,192.7,35.86]
[1761404136378,5.88875477,192.73,192.7,36.57]
[1761404139876,5.18833661,192.74,192.7,35.86]
[1761404140084,16.76481182,192.74,192.71,0.71]
[1761404142487,10.87647521,192.74,192.71,5.89899726]
[1761404142688,10.87647521,192.77,192.73,1.95041539]
[1761404142863,10.87647521,192.77,192.74,36.55]
[1761404143366,10.87647521,192.77,192.75,0.71]
[1761404143586,10.87647521,192.77,192.74,36.55]
[1761404143791,11.57647521,192.77,192.74,36.55]
[1761404144979,16.76413999,192.77,192.74,36.55]
[1761404146778,0.7,192.76,192.74,35.84]
[1761404147692,5.88787053,192.76,192.74,35.84]
[1761404147887,5.88787053,192.76,192.73,0.71]
[1761404147888,10.87647521,192.75,192.71,15.57349391]
[1761404148096,2.65041539,192.74,192.67,0.71]
[1761404148278,12.8268906,192.72,192.68,35.84]
[1761404148667,0.7,192.71,192.68,35.84]
[1761404149071,0.7,192.71,192.68,36.55]
[1761404149275,5.88917607,192.71,192.68,36.55]
[1761404152088,10.87647521,192.7,192.68,35.84]
[1761404152304,11.58647521,192.7,192.68,35.84]
[1761404152994,10.87647521,192.7,192.68,35.84]
[1761404153291,10.87647521,192.7,192.68,36.52]
[1761404153683,0.71,192.69,192.68,35.84]
[1761404154275,16.77590843,192.7,192.68,35.84]
[1761404155293,0.71,192.69,192.68,35.84]
[1761404156182,16.77590843,192.7,192.68,35.84]
[1761404156975,16.06590843,192.7,192.68,35.84]
[1761404157176,16.06590843,192.7,192.68,36.52]
[1761404160401,16.78590843,192.7,192.68,35.84]
[1761404160785,16.06590843,192.7,192.68,35.84]
[1761404161700,16.78590843,192.7,192.68,35.84]
[1761404164306,11.59647521,192.69,192.68,35.84]
[1761404164504,13.5468906,192.69,192.68,35.84]
[1761404165501,10.87647521,192.68,192.62,0.71]
[1761404165706,11.59647521,192.68,192.63,36.55]
[1761404166208,16.78655295,192.68,192.64,0.71]
[1761404167090,0.72,192.67,192.64,0.71]
[1761404167998,5.91031812,192.67,192.64,0.71]
[1761404168311,10.87647521,192.66,192.63,35.84]
[1761404168507,11.59647521,192.66,192.63,35.84]
[1761404168686,11.59647521,192.66,192.63,36.55]
[1761404169503,16.78705627,192.66,192.63,36.55]
[1761404170991,0.72,192.65,192.63,35.84]
[1761404172486,16.06705627,192.66,192.63,35.84]
[1761404172697,16.78705627,192.66,192.63,36.55]
[1761404173009,16.06705627,192.66,192.64,0.71]
[1761404173319,10.87647521,192.66,192.64,0.71]
[1761404174401,5.90930363,192.71,192.65,1.95041539]
[1761404174606,10.87647521,192.72,192.68,1.95041539]
[1761404174792,10.87647521,192.72,192.69,35.84]
[1761404175419,16.78549413,192.72,192.69,35.84]
[1761404176327,10.87647521,192.7,192.69,35.84]
[1761404176921,11.59647521,192.7,192.69,35.84]
[1761404177525,16.7858888,192.7,192.69,35.84]
[1761404186625,18.73630419,192.7,192.69,35.84]
[1761404187504,31.70983818,192.7,192.66,35.84]
[1761404187712,10.87647521,192.67,192.66,35.84]
[1761404187917,16.06669683,192.67,192.66,35.84]
[1761404188235,16.76669683,192.67,192.66,35.84]
[1761404188838,16.76669683,192.67,192.62,0.69]
[1761404189137,10.87647521,192.65,192.63,35.84]
[1761404189522,10.87647521,192.65,192.64,0.69]
[1761404189723,10.87647521,192.65,192.64,36.53]
[1761404191539,7.14037905,192.68,192.64,36.53]
[1761404191740,10.87647521,192.67,192.65,0.69]
[1761404193329,16.06672387,192.67,192.65,0.69]
[1761404193722,16.06672387,192.67,192.64,35.84]
[1761404193723,16.06672387,192.67,192.64,36.53]
[1761404193924,16.76672387,192.67,192.64,36.53]
[1761404194617,16.06672387,192.67,192.64,36.53]
[1761404194813,5.18977116,192.69,192.65,0.69]
[1761404195035,11.57647521,192.68,192.65,0.69]